bitfinex/quotes_SOLUSD_20220208
["timestamp","ask_amount","ask_price","bid_price","bid_amount"]
[1644301253986,10.01,119.52,119.44,28.78969985]
[1644301254189,10.26,119.52,119.44,2.32765457]
[1644301254389,10.26,119.52,119.43,0.32415212]
[1644301254589,16.26,119.52,119.43,0.32415212]
[1644301254788,28.5663,119.52,119.43,0.32415212]
[1644301256589,34.77607,119.52,119.43,0.32415212]
[1644301257391,28.5663,119.52,119.43,0.32415212]
[1644301258697,28.8163,119.52,119.43,0.32415212]
[1644301258895,28.5663,119.52,119.43,0.32415212]
[1644301261498,28.8163,119.52,119.43,0.32415212]
[1644301261698,12.5663,119.52,119.43,0.32415212]
[1644301261899,10.01,119.55,119.43,9.40415212]
[1644301262099,10.01,119.58,119.45,25.67657989]
[1644301262299,86.3735,119.6,119.46,0.024]
[1644301262699,86.3735,119.6,119.47,1.73160672]
[1644301262900,47.8512,119.64,119.48,28.27823691]
[1644301263106,38.91040343,119.65,119.48,28.27823691]
[1644301263107,10.01,119.62,119.5,41.8123]
[1644301263301,74.4826,119.73,119.5,41.8123]
[1644301263302,12.4381,119.71,119.51,26.83085892]
[1644301263501,12.4381,119.71,119.51,52.94406564]
[1644301263502,6.20977,119.71,119.51,52.94406564]
[1644301263701,6.20977,119.71,119.58,26.17629796]
[1644301263901,6.20977,119.71,119.61,12.5347]
[1644301264104,6.20977,119.71,119.62,25.57579659]
[1644301264303,6.20977,119.71,119.62,25.82579659]
[1644301265002,6.20977,119.71,119.6,0.024]
[1644301265003,34.75697,119.71,119.6,0.024]
[1644301265201,83.37767,119.71,119.54,0.024]
[1644301265405,77.37767,119.71,119.55,1.73160672]
[1644301265608,77.37767,119.71,119.56,41.8157]
[1644301265809,77.37767,119.71,119.57,28.76886121]
[1644301266009,77.37767,119.71,119.59,12.5371]
[1644301266210,113.1,119.69,119.59,0.024]
[1644301266410,12.5415,119.67,119.58,0.024]
[1644301266610,10.01,119.66,119.58,0.024]
[1644301266810,10.01,119.66,119.57,28.74486121]
[1644301267210,10.01,119.66,119.57,41.28416121]
[1644301267411,10.01,119.66,119.57,28.74486121]
[1644301268412,22.5521,119.66,119.54,0.024]
[1644301268612,2.10775549,119.65,119.54,0.024]
[1644301268814,10.01,119.64,119.53,0.024]
[1644301269013,10.01,119.64,119.52,0.024]
[1644301269212,30.45175549,119.64,119.48,29.2019]
[1644301269412,30.45175549,119.64,119.49,30.0219219]
[1644301269611,30.76824234,119.64,119.5,0.024]
[1644301269811,12.5456,119.62,119.5,0.024]
[1644301270012,10.01,119.61,119.5,0.024]
[1644301270312,16.26,119.61,119.5,0.024]
[1644301270611,16.01,119.61,119.5,0.024]
[1644301270818,10.01,119.61,119.5,0.024]
[1644301271012,10.01,119.61,119.51,28.98439887]
[1644301271212,10.01,119.61,119.51,29.23439887]
[1644301271412,10.01,119.61,119.51,30.96618352]
[1644301272532,10.01,119.61,119.51,28.98439887]
[1644301272734,10.01,119.61,119.53,12.5439]
[1644301272935,10.01,119.61,119.54,23.37407078]
[1644301273739,10.01,119.61,119.54,23.62407078]
[1644301275445,10.01,119.64,119.54,23.62407078]
[1644301275641,16.01,119.64,119.54,23.62407078]
[1644301275844,16.26,119.64,119.54,23.62407078]
[1644301276441,28.8035,119.64,119.54,36.16687078]
[1644301276842,22.5535,119.64,119.54,36.16687078]
[1644301277041,10.01,119.64,119.54,43.90927466]
[1644301277541,6.20977,119.64,119.54,52.96527466]
[1644301278143,6.20977,119.64,119.54,43.65927466]
[1644301278346,6.20977,119.64,119.54,41.91687078]
[1644301278743,6.20977,119.64,119.54,43.65927466]
[1644301279345,6.20977,119.64,119.54,20.28520388]
[1644301279546,10.01,119.63,119.52,12.5687]
[1644301279745,12.5459,119.62,119.52,0.024]
[1644301279945,10.01,119.61,119.5,0.024]
[1644301280145,16.01,119.61,119.48,0.024]
[1644301280345,16.01,119.61,119.48,28.50033946]
[1644301280545,22.21977,119.61,119.51,24.06133833]
[1644301280746,12.20977,119.61,119.51,24.06133833]
[1644301281048,123.11,119.67,119.52,1.74207075]
[1644301281247,6.20977,119.66,119.53,26.87706592]
[1644301281450,6.20977,119.66,119.53,26.90106592]
[1644301281647,22.21977,119.66,119.54,0.024]
[1644301282046,22.21977,119.66,119.53,33.89313667]
[1644301282247,22.46977,119.66,119.53,33.89313667]
[1644301282647,35.01127,119.66,119.53,31.90106592]
[1644301282849,35.01127,119.66,119.53,25.90106592]
[1644301283050,35.01127,119.66,119.53,31.90106592]
[1644301283550,37.11902549,119.66,119.53,25.90106592]
[1644301283750,35.01127,119.66,119.53,25.90106592]
[1644301284651,35.01127,119.66,119.53,26.15106592]
[1644301284849,35.01127,119.66,119.53,38.69496592]
[1644301285552,29.01127,119.66,119.53,38.69496592]
[1644301285750,31.11902549,119.66,119.53,38.69496592]
[1644301286152,30.86902549,119.66,119.53,38.69496592]
[1644301286349,28.76127,119.66,119.53,38.69496592]
[1644301286950,28.76127,119.66,119.53,41.6000853]
[1644301287152,34.76127,119.66,119.53,47.6000853]
[1644301287349,34.76127,119.66,119.55,25.83067369]
[1644301287550,34.76127,119.66,119.58,23.94454465]
[1644301287750,28.76127,119.66,119.58,24.19454465]
[1644301288250,34.76127,119.66,119.58,24.19454465]
[1644301288654,28.76127,119.66,119.58,24.19454465]
[1644301289252,28.76127,119.66,119.58,30.19454465]
[1644301291656,34.76127,119.66,119.58,30.19454465]
[1644301292955,28.76127,119.66,119.58,30.19454465]
[1644301293455,22.5515,119.66,119.58,30.19454465]
[1644301293861,22.853,119.67,119.58,42.73294465]
[1644301294157,28.853,119.67,119.58,42.73294465]
[1644301295859,28.853,119.67,119.58,43.89590347]
[1644301297458,41.3924,119.67,119.58,43.89590347]
[1644301297659,41.3924,119.67,119.58,42.73294465]
[1644301298059,41.3924,119.67,119.58,42.48294465]
[1644301299060,41.6424,119.67,119.58,29.94454465]
[1644301299661,16.01,119.67,119.58,29.94454465]
[1644301300163,16.01,119.67,119.58,31.10750347]
[1644301300363,16.01,119.67,119.58,43.64590347]
[1644301300962,16.01,119.67,119.58,43.89590347]
[1644301301263,6.0,119.67,119.58,45.63818508]
[1644301301462,6.0,119.67,119.6,39.51633382]
[1644301301662,129.11,119.69,119.6,45.51633382]
[1644301301864,129.11,119.69,119.6,45.76633382]
[1644301302462,123.11,119.69,119.6,45.76633382]
[1644301302865,1.18527668,119.75,119.6,48.67157425]
[1644301303065,10.01,119.74,119.6,48.67157425]
[1644301303266,13.71417668,119.77,119.63,26.63591127]
[1644301303466,10.01,119.78,119.66,20.81127742]
[1644301303665,10.01,119.78,119.66,26.81127742]
[1644301303864,10.01,119.78,119.66,27.06127742]
[1644301304065,10.01,119.78,119.68,27.35992304]
[1644301304265,10.01,119.78,119.68,27.60992304]
[1644301304468,28.5373,119.78,119.68,27.60992304]
[1644301305387,22.5373,119.78,119.68,27.60992304]
[1644301305587,10.01,119.78,119.68,47.88010465]
[1644301305786,1.18527668,119.81,119.68,47.88010465]
[1644301305990,200.51227668,119.82,119.68,47.88010465]
[1644301306188,137.96187668,119.82,119.68,47.88010465]
[1644301306388,136.7766,119.82,119.68,47.88010465]
[1644301306589,16.01,119.82,119.68,47.88010465]
[1644301306789,1.18527668,119.84,119.7,26.45731518]
[1644301306993,1.18527668,119.85,119.74,22.61494278]
[1644301307191,1.18527668,119.88,119.76,41.7187]
[1644301307390,113.1,119.89,119.77,28.35186333]
[1644301307391,114.28527668,119.89,119.77,28.35186333]
[1644301307589,113.1,119.89,119.77,34.35186333]
[1644301307790,114.28527668,119.89,119.77,36.34414494]
[1644301307991,10.01,119.88,119.77,34.60186333]
[1644301308191,11.19527668,119.88,119.77,6.25]
[1644301308390,10.01,119.88,119.77,0.25]
[1644301308590,38.8978,119.88,119.77,0.25]
[1644301308790,41.00555549,119.88,119.73,7.99228161]
[1644301309196,38.8978,119.88,119.74,20.49659642]
[1644301309392,51.6667,119.88,119.74,33.01739642]
[1644301309594,51.4167,119.88,119.74,39.26739642]
[1644301309993,51.4167,119.88,119.74,41.00994118]
[1644301310398,28.8878,119.88,119.74,41.00994118]
[1644301310591,6.0,119.88,119.74,41.00994118]
[1644301310992,129.11,119.89,119.74,51.01994118]
[1644301311393,129.11,119.89,119.74,64.99256953]
[1644301311596,129.11,119.89,119.74,64.74256953]
[1644301311795,129.11,119.89,119.74,40.75994118]
[1644301311996,129.11,119.89,119.74,39.01739642]
[1644301312394,123.11,119.89,119.74,40.75994118]
[1644301312595,123.11,119.89,119.74,39.01739642]
[1644301312896,135.6278,119.89,119.74,39.01739642]
[1644301313296,135.8778,119.89,119.76,38.29631001]
[1644301313694,141.8778,119.89,119.76,44.29631001]
[1644301314295,141.8778,119.89,119.76,44.54631001]
[1644301314496,141.6278,119.89,119.76,44.54631001]
[1644301314703,141.6278,119.89,119.76,46.28885477]
[1644301315100,135.6278,119.89,119.76,46.28885477]
[1644301315301,123.11,119.89,119.76,46.28885477]
[1644301315505,113.1,119.89,119.76,46.28885477]
[1644301315699,101.1124,119.94,119.76,60.06250043]
[1644301315898,101.1124,119.94,119.78,21.33463597]
[1644301316099,10.01,119.93,119.83,20.78610849]
[1644301316299,10.01,119.93,119.83,21.03610849]
[1644301316499,16.01,119.93,119.83,21.03610849]
[1644301316900,10.01,119.93,119.83,21.03610849]
[1644301317108,10.26,119.93,119.83,21.03610849]
[1644301319402,10.26,119.93,119.83,33.54700849]
[1644301319800,10.01,119.93,119.83,33.54700849]
[1644301320200,303.0,119.95,119.83,41.28955325]
[1644301320399,303.0,119.95,119.83,52.92955325]
[1644301321200,0.45563656,119.97,119.84,10.01]
[1644301321504,40.0,119.89,119.87,12.5025]
[1644301321705,0.45563656,119.97,119.88,44.30169857]
[1644301321902,0.45563656,119.97,119.88,45.50169857]
[1644301322102,0.45563656,119.97,119.88,51.75169857]
[1644301322402,0.45563656,119.97,119.9,12.5021]
[1644301322603,0.45563656,119.97,119.88,34.47729863]
[1644301322803,0.45563656,119.97,119.88,34.22729863]
[1644301323202,0.45563656,119.97,119.88,6.0]
[1644301323402,2.56339205,119.97,119.85,23.6383]
[1644301323602,0.45563656,119.97,119.85,29.6383]
[1644301324001,2.56339205,119.97,119.85,29.6383]
[1644301324202,8.09429332,119.96,119.85,29.8883]
[1644301324602,121.19429332,119.96,119.85,29.8883]
[1644301325403,121.19429332,119.96,119.85,42.3966]
[1644301326707,7.72556642,119.94,119.85,42.3966]
[1644301326907,7.72556642,119.94,119.85,18.7583]
[1644301327106,7.72556642,119.94,119.85,6.0]
[1644301327506,7.72556642,119.94,119.84,23.9198]
[1644301327507,7.72556642,119.94,119.84,29.9198]
[1644301328107,7.72556642,119.94,119.84,6.0]
[1644301328310,7.72556642,119.94,119.83,29.2661]
[1644301328706,7.72556642,119.94,119.84,12.5093]
[1644301329107,7.72556642,119.94,119.84,18.7593]
[1644301329709,7.72556642,119.94,119.84,18.5093]
[1644301330007,7.36556642,119.94,119.84,20.25184476]
[1644301331111,7.36556642,119.94,119.84,20.50184476]
[1644301334511,0.45563656,119.97,119.84,20.50184476]
[1644301335711,8.4498911,119.97,119.84,20.50184476]
[1644301336311,8.4498911,119.97,119.84,20.25184476]
[1644301337613,8.4498911,119.97,119.84,20.50184476]
[1644301340418,8.4498911,119.97,119.84,20.25184476]
[1644301340819,10.01,119.96,119.84,20.25184476]
[1644301341017,7.76837577,119.95,119.84,20.25184476]
[1644301341919,7.42703005,119.93,119.82,12.5119]
[1644301342120,10.01,119.92,119.82,12.5119]
[1644301342319,8.35871436,119.91,119.82,12.5119]
[1644301342723,8.35871436,119.91,119.82,18.5119]
[1644301342919,23.9365,119.94,119.82,18.5119]
[1644301343222,11.19527668,119.96,119.82,27.3019]
[1644301343418,11.19527668,119.96,119.82,18.5119]
[1644301343820,17.19527668,119.96,119.82,18.5119]
[1644301344019,21.81922963,119.95,119.82,12.5119]
[1644301344220,10.01,119.94,119.82,12.5119]
[1644301344418,9.9336348,119.93,119.82,12.5119]
[1644301345520,9.9336348,119.93,119.82,12.7619]
[1644301346122,9.9336348,119.93,119.82,18.7619]
[1644301346321,9.9336348,119.93,119.82,12.7619]
[1644301346539,9.9336348,119.93,119.82,18.7619]
[1644301347545,1.18527668,119.94,119.82,20.50444476]
[1644301347742,1.18527668,119.95,119.82,29.34944476]
[1644301347942,32.01717668,119.96,119.82,30.51240358]
[1644301348142,32.01717668,119.96,119.82,29.34944476]
[1644301348346,1.18527668,119.95,119.82,29.34944476]
[1644301348543,7.70610171,119.94,119.82,30.51240358]
[1644301348743,7.70610171,119.94,119.82,21.66740358]
[1644301349142,7.70610171,119.94,119.82,20.50444476]
[1644301349944,7.70610171,119.94,119.82,21.66740358]
[1644301350345,7.70610171,119.94,119.83,1.16295882]
[1644301350745,7.70610171,119.94,119.86,12.5053]
[1644301351145,7.70610171,119.94,119.87,1.74254476]
[1644301351345,7.70610171,119.94,119.87,1.99254476]
[1644301351547,1.18527668,119.95,119.87,1.99254476]
[1644301351850,26.01717668,119.96,119.87,20.49864476]
[1644301352047,1.18527668,119.96,119.87,20.49864476]
[1644301352246,1.18527668,119.96,119.87,18.5061]
[1644301352448,1.18527668,119.95,119.87,18.5061]
[1644301352747,1.18527668,119.94,119.87,18.5061]
[1644301352947,8.1382733,119.93,119.87,6.0]
[1644301353147,8.1382733,119.93,119.85,20.25124476]
[1644301353347,8.1382733,119.93,119.85,18.5087]
[1644301353551,9.32354998,119.93,119.85,18.5087]
[1644301353947,9.32354998,119.93,119.85,6.0]
[1644301354147,9.32354998,119.93,119.83,52.1221]
[1644301354349,9.32354998,119.93,119.83,52.3721]
[1644301354549,9.32354998,119.93,119.83,54.11464476]
[1644301355049,9.32354998,119.93,119.83,6.25]
[1644301355248,9.32354998,119.93,119.84,1.74254476]
[1644301355649,1.18527668,119.92,119.84,7.99254476]
[1644301355948,9.08501999,119.91,119.84,20.50284476]
[1644301356549,9.08501999,119.91,119.84,18.5103]
[1644301356748,9.08501999,119.91,119.84,6.0]
[1644301356950,10.27029667,119.91,119.84,6.0]
[1644301357151,9.08501999,119.91,119.82,20.25464476]
[1644301358052,9.08501999,119.91,119.82,20.50464476]
[1644301359252,11.19527668,119.92,119.82,20.50464476]
[1644301359454,1.18527668,119.93,119.83,1.74254476]
[1644301359653,1.18527668,119.93,119.86,12.5073]
[1644301359855,1.18527668,119.93,119.86,12.7573]
[1644301360055,1.18527668,119.94,119.87,1.74254476]
[1644301360255,9.56901299,119.93,119.87,1.99254476]
[1644301360656,1.18527668,119.95,119.87,1.99254476]
[1644301361058,7.18527668,119.95,119.87,1.99254476]
[1644301361259,1.18527668,119.95,119.88,12.5061]
[1644301361460,1.18527668,119.96,119.88,18.5061]
[1644301361658,7.60960601,119.94,119.88,18.5061]
[1644301361858,7.60960601,119.94,119.83,1.74254476]
[1644301362056,1.18527668,119.93,119.79,1.16295882]
[1644301362256,8.64797851,119.92,119.83,6.0]
[1644301362457,8.64797851,119.92,119.84,12.5104]
[1644301362658,8.64797851,119.92,119.84,18.5104]
[1644301363059,1.18527668,119.93,119.84,20.50294476]
[1644301363457,1.18527668,119.94,119.84,20.50294476]
[1644301363657,1.18527668,119.95,119.84,20.50294476]
[1644301364059,8.71727557,119.94,119.84,20.50294476]
[1644301364357,9.90255225,119.94,119.84,20.50294476]
[1644301364758,9.90255225,119.94,119.84,18.7604]
[1644301364959,1.18527668,119.93,119.84,18.7604]
[1644301365158,9.20174974,119.92,119.84,18.7604]
[1644301365559,9.20174974,119.92,119.84,12.7604]
[1644301366359,9.20174974,119.92,119.85,1.74254476]
[1644301366562,9.20174974,119.92,119.85,14.25204476]
[1644301366757,9.20174974,119.92,119.85,12.7595]
[1644301366958,9.20174974,119.92,119.85,18.7595]
[1644301367762,20.40702642,119.92,119.85,6.0]
[1644301367968,32.91902642,119.92,119.85,6.0]
[1644301368159,32.91902642,119.92,119.83,12.5115]
[1644301368559,8.78638013,119.9,119.83,12.5115]
[1644301369261,8.78638013,119.9,119.83,12.7615]
[1644301371163,8.78638013,119.9,119.83,12.5115]
[1644301371366,95.0,119.89,119.78,1.74254476]
[1644301371569,10.33166337,119.88,119.75,49.29815882]
[1644301371763,58.42024005,119.88,119.74,1.16295882]
[1644301371963,66.52799554,119.88,119.74,1.16295882]
[1644301372165,1.18527668,119.86,119.72,1.16295882]
[1644301372363,12.5229,119.82,119.71,1.16295882]
[1644301372565,10.02,119.81,119.72,1.62250193]
[1644301372762,10.27,119.81,119.72,1.62250193]
[1644301373162,10.27,119.81,119.69,1.16295882]
[1644301373365,10.27,119.81,119.67,7.30750882]
[1644301373565,12.5263,119.79,119.67,12.14455]
[1644301373762,10.02,119.78,119.66,1.16295882]
[1644301373967,10.02,119.78,119.66,7.16295882]
[1644301374167,10.02,119.78,119.67,1.98685959]
[1644301374364,18.37775549,119.78,119.67,1.98685959]
[1644301374566,16.27,119.78,119.67,1.98685959]
[1644301374767,28.7975,119.78,119.67,1.98685959]
[1644301376677,28.7975,119.78,119.64,0.82475696]
[1644301376869,0.32222745,119.76,119.64,0.82475696]
[1644301377167,12.5326,119.74,119.64,0.82475696]
[1644301377371,22.5536,119.74,119.64,0.82475696]
[1644301377570,10.02,119.73,119.65,1.99317391]
[1644301377970,17.752,119.73,119.65,1.99317391]
[1644301379179,10.02,119.73,119.65,1.99317391]
[1644301379373,10.02,119.73,119.65,2.24317391]
[1644301380373,10.02,119.73,119.65,1.99317391]
[1644301380574,16.02,119.73,119.65,1.99317391]
[1644301380774,10.02,119.73,119.65,1.99317391]
[1644301380978,45.9446,119.76,119.65,1.99317391]
[1644301381177,10.02,119.75,119.65,7.99317391]
[1644301381377,51.9446,119.76,119.65,7.99317391]
[1644301381378,45.9446,119.76,119.65,7.99317391]
[1644301381778,45.9446,119.76,119.65,8.24317391]
[1644301382976,45.9446,119.76,119.65,20.77057391]
[1644301383376,45.9446,119.76,119.65,14.77057391]
[1644301383580,45.9446,119.76,119.65,20.77057391]
[1644301383778,45.9446,119.76,119.65,14.77057391]
[1644301384387,55.9646,119.76,119.65,14.77057391]
[1644301384882,55.9646,119.76,119.65,2.24317391]
[1644301385080,61.9646,119.76,119.65,2.24317391]
[1644301385279,55.9646,119.76,119.65,2.24317391]
[1644301386680,62.2146,119.76,119.65,2.24317391]
[1644301387580,62.2146,119.76,119.65,1.99317391]
[1644301387806,74.7453,119.76,119.65,1.99317391]
[1644301388204,74.4953,119.76,119.65,1.99317391]
[1644301388507,61.9646,119.76,119.65,1.99317391]
[1644301388707,55.9646,119.76,119.65,1.99317391]
[1644301388906,55.9646,119.76,119.65,8.24317391]
[1644301389707,55.9646,119.76,119.65,2.24317391]
[1644301389906,55.9646,119.76,119.64,0.82475696]
[1644301390108,73.0326,119.76,119.64,0.82475696]
[1644301390307,75.39035549,119.76,119.64,0.82475696]
[1644301390912,87.67085549,119.76,119.65,1.74878184]
[1644301391109,76.60285549,119.76,119.65,1.74878184]
[1644301391711,76.85285549,119.76,119.65,1.99878184]
[1644301391908,76.85285549,119.76,119.65,1.74878184]
[1644301392112,74.7451,119.76,119.65,7.74878184]
[1644301392309,68.4951,119.76,119.65,7.74878184]
[1644301393209,55.9646,119.76,119.65,9.74672258]
[1644301394008,55.9646,119.76,119.65,22.27492258]
[1644301394218,45.9446,119.76,119.65,22.27492258]
[1644301394410,45.9446,119.76,119.65,20.52698184]
[1644301394612,45.9446,119.76,119.66,2.01849119]
[1644301394811,45.9446,119.76,119.66,2.26849119]
[1644301395011,125.23,119.84,119.68,1.96801394]
[1644301395212,57.0611,119.82,119.68,8.21801394]
[1644301395415,57.0611,119.82,119.69,1.74794074]
[1644301395614,57.0611,119.82,119.7,1.70396821]
[1644301395913,57.0611,119.82,119.71,1.74395783]
[1644301396113,57.0611,119.82,119.72,1.45466305]
[1644301396314,57.0611,119.82,119.72,1.70466305]
[1644301396513,57.0611,119.82,119.72,7.70466305]
[1644301397116,10.02,119.82,119.72,9.44862088]
[1644301397322,10.02,119.84,119.72,9.44862088]
[1644301397615,57.9922,119.86,119.72,9.44862088]
[1644301397814,57.9922,119.86,119.72,21.96982088]
[1644301398018,60.09995549,119.86,119.72,21.96982088]
[1644301398216,65.49540334,119.86,119.72,21.96982088]
[1644301398416,65.74540334,119.86,119.72,21.96982088]
[1644301398615,63.38764785,119.86,119.72,21.96982088]
[1644301398815,57.38764785,119.86,119.72,21.96982088]
[1644301399015,84.29368934,119.86,119.72,19.97586305]
[1644301399215,2.10775549,119.85,119.72,19.97586305]
[1644301399416,10.02,119.84,119.72,19.97586305]
[1644301400016,10.27,119.84,119.72,19.97586305]
[1644301400615,16.27,119.84,119.72,19.97586305]
[1644301400815,28.7921,119.84,119.72,20.22586305]
[1644301401021,28.7921,119.84,119.72,7.70466305]
[1644301401623,14.38604149,119.83,119.68,1.16295882]
[1644301401819,12.5274,119.79,119.69,6.14353]
[1644301402020,10.02,119.78,119.69,6.14353]
[1644301402821,10.02,119.78,119.7,1.20617781]
[1644301403222,10.02,119.78,119.69,6.14353]
[1644301403422,10.02,119.78,119.67,22.8589]
[1644301404222,10.02,119.78,119.68,1.16436235]
[1644301404921,10.02,119.78,119.68,1.41436235]
[1644301405725,10.02,119.78,119.68,13.93996235]
[1644301406326,10.02,119.78,119.68,13.68996235]
[1644301408128,10.02,119.78,119.68,13.93996235]
[1644301408328,10.02,119.78,119.68,19.93996235]
[1644301410037,1.18527668,119.82,119.72,12.5206]
[1644301410233,23.9739,119.83,119.73,1.18738525]
[1644301410631,23.9739,119.83,119.73,7.43738525]
[1644301411234,23.9739,119.83,119.73,19.95798525]
[1644301411235,33.9939,119.83,119.73,19.95798525]
[1644301411431,33.9939,119.83,119.73,1.43738525]
[1644301411633,10.27,119.83,119.7,46.6941]
[1644301411835,2.10775549,119.82,119.71,6.1425]
[1644301412033,10.02,119.81,119.71,6.1425]
[1644301412232,10.02,119.81,119.7,46.6941]
[1644301412635,10.02,119.81,119.71,13.94593226]
[1644301413033,10.02,119.81,119.71,14.19593226]
[1644301413435,23.72717668,119.84,119.71,14.19593226]
[1644301413634,22.5419,119.84,119.71,14.19593226]
[1644301413834,22.5419,119.84,119.71,20.19593226]
[1644301414658,28.5419,119.84,119.71,20.19593226]
[1644301414857,28.5419,119.84,119.71,19.94593226]
[1644301415063,2.10775549,119.83,119.71,13.94593226]
[1644301415262,22.544,119.82,119.71,13.94593226]
[1644301415659,28.544,119.82,119.71,13.94593226]
[1644301416260,28.544,119.82,119.71,14.19593226]
[1644301416659,37.438,119.82,119.69,12.525]
[1644301416859,2.10775549,119.81,119.69,6.14353]
[1644301417064,12.5282,119.78,119.69,6.14353]
[1644301417259,10.02,119.77,119.69,6.14353]
[1644301417462,25.38897668,119.82,119.69,6.14353]
[1644301417662,25.38897668,119.82,119.7,1.31283459]
[1644301417863,25.38897668,119.82,119.69,12.5254]
[1644301418061,22.5441,119.81,119.69,12.5254]
[1644301418261,22.7941,119.81,119.69,12.5254]
[1644301418563,29.97937668,119.81,119.69,12.5254]
[1644301418763,23.72937668,119.81,119.69,12.5254]
[1644301418962,24.65185549,119.81,119.7,1.05547201]
[1644301419162,24.65185549,119.81,119.67,41.7472]
[1644301419163,22.5441,119.81,119.72,1.04651636]
[1644301419561,22.5441,119.81,119.72,1.29651636]
[1644301420573,22.5441,119.81,119.72,13.81941636]
[1644301420763,10.02,119.81,119.72,13.81941636]
[1644301423671,10.02,119.81,119.72,13.56941636]
[1644301425169,10.02,119.81,119.72,13.81941636]
[1644301425972,47.6728,119.82,119.72,13.81941636]
[1644301426571,47.6728,119.82,119.72,12.5229]
[1644301426771,47.6728,119.82,119.7,90.65625882]
[1644301426772,10.02,119.81,119.7,60.2799]
[1644301426972,11.20527668,119.81,119.7,60.2799]
[1644301427171,10.02,119.81,119.7,60.2799]
[1644301427573,10.02,119.81,119.71,1.15603789]
[1644301427975,10.02,119.81,119.71,1.40603789]
[1644301428172,10.02,119.81,119.71,7.15603789]
[1644301428374,10.02,119.81,119.71,1.40603789]
[1644301428774,10.02,119.81,119.73,12.522]
[1644301428974,10.02,119.81,119.74,1.36923914]
[1644301429380,1.18527668,119.83,119.74,1.61923914]
[1644301429577,1.18527668,119.84,119.74,1.61923914]
[1644301429776,1.18527668,119.85,119.74,7.61923914]
[1644301429977,1.18527668,119.85,119.74,20.14023914]
[1644301430279,11.20527668,119.86,119.74,20.14023914]
[1644301430676,11.20527668,119.86,119.74,44.44463914]
[1644301430878,11.20527668,119.86,119.74,46.19921106]
[1644301431277,10.02,119.86,119.74,46.19921106]
[1644301431480,1.18527668,119.87,119.74,46.19921106]
[1644301431681,47.14037668,119.88,119.75,10.02]
[1644301431881,1.18527668,119.89,119.78,12.5128]
[1644301432082,455.81479912,119.9,119.79,1.0803173]
[1644301432281,455.81479912,119.9,119.79,1.3303173]
[1644301432481,455.81479912,119.9,119.79,7.3303173]
[1644301432680,11.20527668,119.91,119.79,7.3303173]
[1644301432880,17.20527668,119.91,119.79,7.3303173]
[1644301433883,17.20527668,119.91,119.81,13.93423519]
[1644301434081,17.20527668,119.91,119.81,12.5132]
[1644301434283,29.71867668,119.91,119.81,12.7632]
[1644301434883,29.71867668,119.91,119.81,12.5132]
[1644301435083,2.10775549,119.9,119.81,12.5132]
[1644301435282,1.18527668,119.9,119.82,13.62113201]
[1644301435483,23.96867668,119.91,119.82,13.62113201]
[1644301435691,11.20527668,119.91,119.82,13.62113201]
[1644301435884,11.20527668,119.91,119.82,12.5127]
[1644301435885,10.02,119.91,119.82,12.5127]
[1644301437184,10.02,119.91,119.82,12.7627]
[1644301437386,10.02,119.91,119.83,1.20949556]
[1644301437785,10.02,119.91,119.83,1.45949556]
[1644301437987,10.02,119.91,119.83,13.97089556]
[1644301438192,46.69367668,119.92,119.83,19.97089556]
[1644301438388,114.28527668,119.94,119.83,19.97089556]
[1644301438589,114.28527668,119.94,119.84,1.2540247]
[1644301438789,102.5703,119.96,119.84,1.5040247]
[1644301438989,102.5703,119.96,119.84,9.25407205]
[1644301439190,108.5703,119.96,119.84,9.25407205]
[1644301439390,108.5703,119.96,119.87,13.73750559]
[1644301439590,120.69805549,119.96,119.87,6.0]
[1644301439792,119.77557668,119.96,119.87,6.25]
[1644301439994,118.5903,119.96,119.87,6.0]
[1644301440191,119.27557668,119.96,119.87,6.0]
[1644301440418,119.27557668,119.96,119.84,1.44835135]
[1644301440419,132.87914095,119.96,119.84,1.44835135]
[1644301440623,135.23689644,119.96,119.84,7.44835135]
[1644301440822,1.18527668,119.95,119.84,7.44835135]
[1644301441015,118.0903,119.96,119.84,7.44835135]
[1644301441217,0.25,119.95,119.84,7.44835135]